fUST/lending_fUST_20251229
["ID","MTS","AMOUNT","RATE_DAILY","PERIOD"]
[400014868,1767019841469,-246.82914686,0.00019178,2]
[400014871,1767019841479,-158.60174501,0.00019178,2]
[400014873,1767019841489,-469.4075144,0.00019178,2]
[400014876,1767019841509,-395.12698527,0.00019178,2]
[400014877,1767019841519,-210.12873179,0.00019178,2]
[400014880,1767019841528,-239.67666409,0.00019178,2]
[400014881,1767019841538,-268.81198579,0.00019178,2]
[400014883,1767019841548,-474.13507893,0.00019178,2]
[400014885,1767019841558,-174.63658247,0.00019178,2]
[400014887,1767019841569,-566.74984132,0.00019178,2]
[400014890,1767019841579,-177.90735047,0.00019178,2]
[400014892,1767019841588,-469.94931329,0.00019178,2]
[400014894,1767019841598,-260.5348626,0.00019178,2]
[400014896,1767019841607,-328.30768993,0.00019178,2]
[400014897,1767019841617,-500.0,0.00019178,2]
[400014900,1767019841626,-568.76309973,0.00019178,2]
[400014902,1767019841636,-407.86933882,0.00019178,2]
[400014904,1767019841645,-407.85844134,0.00019178,2]
[400014906,1767019841656,-191.35979133,0.00019178,2]
[400014908,1767019841666,-201.43304431,0.00019178,2]
[400014910,1767019841675,-500.0,0.00019178,2]
[400014911,1767019841684,-447.58246298,0.00019178,2]
[400014913,1767019841695,-500.0,0.00019178,2]
[400014915,1767019841704,-499.53568973,0.00019178,2]
[400014918,1767019841714,-243.54881724,0.00019178,2]
[400014920,1767019841723,-488.54130711,0.00019178,2]
[400014922,1767019841733,-312.71171079,0.00019178,2]
[400014924,1767019841743,-314.06516067,0.00019178,2]
[400014926,1767019841752,-163.25279806,0.00019178,2]
[400014928,1767019841762,-500.0,0.00019178,2]
[400014930,1767019841771,-241.0507779,0.00019178,2]
[400014931,1767019841780,-490.74108158,0.00019178,2]
[400014934,1767019841789,-280.07760729,0.00019178,2]
[400014936,1767019841799,-494.38316648,0.00019178,2]
[400014938,1767019841808,-164.63967481,0.00019178,2]
[400014940,1767019841817,-161.69636147,0.00019178,2]
[400014941,1767019841827,-500.0,0.00019178,2]
[400014943,1767019841837,-183.26107061,0.00019178,2]
[400014945,1767019841846,-262.92534721,0.00019178,2]
[400014947,1767019841855,-347.21846073,0.00019178,2]
[400014950,1767019841865,-476.00274667,0.00019178,2]
[400014952,1767019841874,-406.89272503,0.00019178,2]
[400014954,1767019841884,-451.7193611,0.00019178,2]
[400014955,1767019841893,-467.99356264,0.00019178,2]
[400014958,1767019841902,-460.17636895,0.00019178,2]
[400014960,1767019841913,-381.44270376,0.00019178,2]
[400014962,1767019841924,-202.31376663,0.00019178,2]
[400014964,1767019841935,-203.24190717,0.00019178,2]
[400014966,1767019841944,-517.85628227,0.00019178,2]
[400014968,1767019841953,-1000.0,0.00019178,2]
[400014970,1767019841962,-251.37829777,0.00019178,2]
[400014972,1767019841972,-500.0,0.00019178,2]
[400014974,1767019841981,-309.43647054,0.00019178,2]
[400014976,1767019841990,-374.95658771,0.00019178,2]
[400014977,1767019842001,-319.68433654,0.00019178,2]
[400014979,1767019842010,-500.0,0.00019178,2]
[400014981,1767019842020,-500.0,0.00019178,2]
[400014983,1767019842029,-465.19135142,0.00019178,2]
[400014985,1767019842038,-234.48823972,0.00019178,2]
[400014987,1767019842047,-500.0,0.00019178,2]
[400014989,1767019842056,-213.06669978,0.00019178,2]
[400014991,1767019842066,-186.64044942,0.00019178,2]
[400014993,1767019842075,-367.57,0.00019178,2]
[400014995,1767019842084,-434.87120027,0.00019178,2]
[400014997,1767019842094,-269.57121711,0.00019178,2]
[400014999,1767019842103,-164.72537935,0.00019178,2]
[400015001,1767019842112,-499.59276763,0.00019178,2]
[400015003,1767019842121,-230.94001368,0.00019178,2]
[400015005,1767019842130,-206.2591174,0.00019178,2]
[400015007,1767019842139,-351.67604569,0.00019178,2]
[400015009,1767019842149,-1258.92,0.00019178,2]
[400015011,1767019842161,-500.0,0.00019178,2]
[400015013,1767019842170,-327.42795179,0.00019178,2]
[400015015,1767019842179,-217.86653738,0.00019178,2]
[400015017,1767019842188,-266.12580852,0.00019178,2]
[400015019,1767019842197,-470.89585768,0.00019178,2]
[400015021,1767019842206,-454.77996909,0.00019178,2]
[400015023,1767019842215,-296.36211743,0.00019178,2]
[400015025,1767019842225,-249.9681414,0.00019178,2]
[400015027,1767019842234,-208.37773591,0.00019178,2]
[400015029,1767019842244,-420.40948282,0.00019178,2]
[400015031,1767019842253,-276.4405767,0.00019178,2]
[400015033,1767019842263,-500.0,0.00019178,2]
[400015035,1767019842272,-445.80989693,0.00019178,2]
[400015037,1767019842281,-460.4,0.00019178,2]
[400015039,1767019842291,-189.07333693,0.00019178,2]
[400015041,1767019842300,-501.89029961,0.00019178,2]
[400015043,1767019842310,-320.64526273,0.00019178,2]
[400015045,1767019842320,-229.88879352,0.00019178,2]
[400015047,1767019842329,-281.13326683,0.00019178,2]
[400015049,1767019842338,-441.60555769,0.00019178,2]
[400015051,1767019842347,-181.669416,0.00019178,2]
[400015053,1767019842356,-474.25212021,0.00019178,2]
[400015055,1767019842365,-464.38811206,0.00019178,2]
[400015057,1767019842374,-500.0,0.00019178,2]
[400015059,1767019842383,-500.0,0.00019178,2]
[400015061,1767019842392,-449.40365979,0.00019178,2]
[400015063,1767019842401,-322.21446513,0.00019178,2]
[400015065,1767019842411,-293.1369972,0.00019178,2]
[400015067,1767019842420,-363.91423782,0.00019178,2]
[400015069,1767019842428,-471.79543403,0.00019178,2]
[400015071,1767019842437,-442.47098096,0.00019178,2]
[400015073,1767019842446,-489.5909872,0.00019178,2]
[400015075,1767019842456,-419.94997901,0.00019178,2]
[400015077,1767019842465,-500.0,0.00019178,2]
[400015079,1767019842474,-500.0,0.00019178,2]
[400015081,1767019842483,-500.0,0.00019178,2]
[400015083,1767019842492,-333.99912007,0.00019178,2]
[400015085,1767019842502,-240.99321294,0.00019178,2]
[400015087,1767019842511,-500.0,0.00019178,2]
[400015089,1767019842520,-484.69795904,0.00019178,2]
[400015091,1767019842529,-312.19237023,0.00019178,2]
[400015093,1767019842538,-319.68950835,0.00019178,2]
[400015095,1767019842547,-277.6938934,0.00019178,2]
[400015097,1767019842557,-492.95701342,0.00019178,2]
[400015099,1767019842568,-203.45973011,0.00019178,2]
[400015101,1767019842578,-231.78420349,0.00019178,2]
[400015103,1767019842587,-486.28780482,0.00019178,2]
[400015105,1767019842596,-186.48937392,0.00019178,2]
[400015107,1767019842606,-500.0,0.00019178,2]
[400015109,1767019842615,-245.93524782,0.00019178,2]
[400015111,1767019842625,-511.89011642,0.00019178,2]
[400015113,1767019842634,-424.72070765,0.00019178,2]
[400015115,1767019842643,-273.35091311,0.00019178,2]
[400015117,1767019842653,-362.31823846,0.00019178,2]
[400015119,1767019842663,-327.11223151,0.00019178,2]
[400015121,1767019842672,-294.57638844,0.00019178,2]
[400015123,1767019842681,-596.55559848,0.00019178,2]
[400015125,1767019842690,-268.15903385,0.00019178,2]
[400015127,1767019842699,-449.82536442,0.00019178,2]
[400015129,1767019842709,-327.50837283,0.00019178,2]
[400015131,1767019842718,-200.33695249,0.00019178,2]
[400015133,1767019842728,-205.57380574,0.00019178,2]
[400015135,1767019842737,-480.0,0.00019178,2]
[400015137,1767019842746,-214.56132807,0.00019178,2]
[400015139,1767019842755,-421.70731069,0.00019178,2]
[400015141,1767019842764,-327.08881678,0.00019178,2]
[400015143,1767019842774,-372.81822915,0.00019178,2]
[400015145,1767019842783,-471.93883825,0.00019178,2]
[400015147,1767019842793,-231.02510062,0.00019178,2]
[400015149,1767019842802,-252.80567883,0.00019178,2]
[400015151,1767019842811,-278.49487928,0.00019178,2]
[400015153,1767019842820,-231.26445658,0.00019178,2]
[400015155,1767019842829,-486.63011465,0.00019178,2]
[400015157,1767019842838,-331.17439079,0.00019178,2]
[400015159,1767019842847,-487.86563401,0.00019178,2]
[400015161,1767019842857,-161.30574498,0.00019178,2]
[400015163,1767019842866,-370.21932107,0.00019178,2]
[400015165,1767019842876,-500.0,0.00019178,2]
[400015167,1767019842885,-410.54004209,0.00019178,2]
[400015169,1767019842894,-501.19543339,0.00019178,2]
[400015171,1767019842903,-288.23939754,0.00019178,2]
[400015173,1767019842913,-477.19724969,0.00019178,2]
[400015175,1767019842926,-486.66236312,0.00019178,2]
[400015177,1767019842935,-461.30514034,0.00019178,2]
[400015179,1767019842944,-194.87945958,0.00019178,2]
[400015180,1767019842953,-346.19948498,0.00019178,2]
[400015183,1767019842966,-446.11338356,0.00019178,2]
[400015184,1767019842975,-170.04860205,0.00019178,2]
[400015186,1767019842984,-459.55961902,0.00019178,2]
[400015189,1767019842995,-338.3045025,0.00019178,2]
[400015191,1767019843004,-229.00132958,0.00019178,2]
[400015192,1767019843014,-199.50718454,0.00019178,2]
[400015210,1767019843024,-395.71561786,0.00019178,2]
[400015213,1767019843187,-229.40932393,0.00019178,2]
[400015215,1767019843197,-407.47489559,0.00019178,2]
[400015217,1767019843206,-495.94160882,0.00019178,2]
[400015219,1767019843215,-332.28303991,0.00019178,2]
[400015221,1767019843224,-500.0,0.00019178,2]
[400015225,1767019843234,-500.0,0.00019178,2]
[400015228,1767019843243,-500.0,0.00019178,2]
[400015232,1767019843252,-241.60322333,0.00019178,2]
[400015236,1767019843261,-500.0,0.00019178,2]
[400015240,1767019843270,-430.81365295,0.00019178,2]
[400015245,1767019843280,-236.94054092,0.00019178,2]
[400015247,1767019843289,-500.0,0.00019178,2]
[400015249,1767019843298,-282.47239194,0.00019178,2]
[400015251,1767019843307,-512.09352173,0.00019178,2]
[400015252,1767019843316,-500.0,0.00019178,2]
[400015254,1767019843326,-500.0,0.00019178,2]
[400015257,1767019843336,-622.69121472,0.00019178,2]
[400015258,1767019843347,-488.28774234,0.00019178,2]
[400015261,1767019843357,-273.51615063,0.00019178,2]
[400015263,1767019843366,-406.98709601,0.00019178,2]
[400015265,1767019843376,-496.33962389,0.00019178,2]
[400015267,1767019843385,-500.0,0.00019178,2]
[400015269,1767019843394,-184.33391286,0.00019178,2]
[400015270,1767019843403,-500.0,0.00019178,2]
[400015271,1767019843414,-255.36194022,0.00019178,2]
[400015273,1767019843423,-178.50369212,0.00019178,2]
[400015275,1767019843432,-370.63190419,0.00019178,2]
[400015277,1767019843441,-500.0,0.00019178,2]
[400015279,1767019843450,-333.56161096,0.00019178,2]
[400015281,1767019843460,-496.98851051,0.00019178,2]
[400015283,1767019843469,-456.75047125,0.00019178,2]
[400015285,1767019843478,-250.86157752,0.00019178,2]
[400015287,1767019843488,-500.0,0.00019178,2]
[400015289,1767019843497,-350.93019086,0.00019178,2]
[400015291,1767019843506,-500.0,0.00019178,2]
[400015293,1767019843515,-538.10671884,0.00019178,2]
[400015295,1767019843524,-225.73156657,0.00019178,2]
[400015297,1767019843533,-195.74438465,0.00019178,2]
[400015299,1767019843542,-501.7554646,0.00019178,2]
[400015301,1767019843551,-423.95359119,0.00019178,2]
[400015303,1767019843560,-500.0,0.00019178,2]
[400015305,1767019843569,-529.67556435,0.00019178,2]
[400015307,1767019843578,-500.0,0.00019178,2]
[400015309,1767019843588,-500.0,0.00019178,2]
[400015311,1767019843597,-500.0,0.00019178,2]
[400015313,1767019843607,-540.44375359,0.00019178,2]
[400015315,1767019843616,-426.86495862,0.00019178,2]
[400015317,1767019843626,-363.63724967,0.00019178,2]
[400015319,1767019843636,-500.99596563,0.00019178,2]
[400015321,1767019843645,-491.37863043,0.00019178,2]
[400015323,1767019843655,-500.0,0.00019178,2]
[400015325,1767019843664,-306.74492455,0.00019178,2]
[400015326,1767019843674,-500.0,0.00019178,2]
[400015328,1767019843683,-349.44841034,0.00019178,2]
[400015330,1767019843692,-497.71228405,0.00019178,2]
[400015332,1767019843702,-443.82116466,0.00019178,2]
[400015334,1767019843711,-500.0,0.00019178,2]
[400015336,1767019843720,-500.0,0.00019178,2]
[400015338,1767019843729,-500.0,0.00019178,2]
[400015340,1767019843738,-268.02262656,0.00019178,2]
[400015342,1767019843748,-610.95408846,0.00019178,2]
[400015344,1767019843756,-368.0625331,0.00019178,2]
[400015346,1767019843765,-186.37266074,0.00019178,2]
[400015348,1767019843775,-500.0,0.00019178,2]
[400015350,1767019843784,-573.02929433,0.00019178,2]
[400015352,1767019843795,-403.68063183,0.00019178,2]
[400015354,1767019843803,-500.0,0.00019178,2]
[400015356,1767019843812,-419.21827466,0.00019178,2]
[400015357,1767019843822,-500.0,0.00019178,2]
[400015359,1767019843831,-500.0,0.00019178,2]
[400015361,1767019843840,-561.91723085,0.00019178,2]
[400015363,1767019843849,-506.42329108,0.00019178,2]
[400015365,1767019843859,-538.10185872,0.00019178,2]
[400015367,1767019843869,-256.964808,0.00019178,2]
[400015369,1767019843878,-314.14014211,0.00019178,2]
[400015371,1767019843888,-539.0850877,0.00019178,2]
[400015373,1767019843898,-500.0,0.00019178,2]
[400015375,1767019843911,-7629.338496,0.00019178,2]
[400015377,1767019843922,-420.23607407,0.00019178,2]
[400015379,1767019843935,-336.11535103,0.00019178,2]
[400015381,1767019843944,-215.83814389,0.00019178,2]
[400015383,1767019843954,-358.42368919,0.00019178,2]
[400015385,1767019843963,-500.0,0.00019178,2]
[400015387,1767019843974,-485.56870717,0.00019178,2]
[400015389,1767019843984,-221.67463703,0.00019178,2]
[400015391,1767019843994,-228.09003205,0.00019178,2]
[400015393,1767019844003,-634.2289801,0.00019178,2]
[400015395,1767019844012,-365.10181785,0.00019178,2]
[400015397,1767019844021,-239.31624536,0.00019178,2]
[400015399,1767019844030,-477.6934302,0.00019178,2]
[400015401,1767019844039,-488.15692853,0.00019178,2]
[400015403,1767019844048,-487.77119636,0.00019178,2]
[400015405,1767019844057,-434.26386451,0.00019178,2]
[400015407,1767019844066,-268.64102064,0.00019178,2]
[400015409,1767019844076,-315.15556904,0.00019178,2]
[400015411,1767019844085,-480.20810443,0.00019178,2]
[400015413,1767019844095,-488.48967991,0.00019178,2]
[400015415,1767019844104,-182.03330599,0.00019178,2]
[400015416,1767019844113,-376.73083576,0.00019178,2]
[400015418,1767019844122,-500.0,0.00019178,2]
[400015420,1767019844131,-496.84809073,0.00019178,2]
[400015422,1767019844140,-203.35647701,0.00019178,2]
[400015424,1767019844149,-500.0,0.00019178,2]
[400015425,1767019844159,-231.94031787,0.00019178,2]
[400015427,1767019844170,-290.15325278,0.00019178,2]
[400015429,1767019844179,-275.06643056,0.00019178,2]
[400015431,1767019844189,-465.70568753,0.00019178,2]
[400015433,1767019844197,-187.90611098,0.00019178,2]
[400015434,1767019844206,-323.76444914,0.00019178,2]
[400015435,1767019844215,-595.06230155,0.00019178,2]
[400015436,1767019844223,-178.31606175,0.00019178,2]
[400015437,1767019844232,-211.21437953,0.00019178,2]
[400015438,1767019844241,-579.90981318,0.00019178,2]
[400015439,1767019844250,-429.31446917,0.00019178,2]
[400015440,1767019844259,-360.97170815,0.00019178,2]
[400015441,1767019844273,-461.88261165,0.00019178,2]
[400015442,1767019844289,-224.13773528,0.00019178,2]
[400015443,1767019844297,-1000.0,0.00019178,2]
[400015444,1767019844306,-500.0,0.00019178,2]
[400015445,1767019844315,-222.57135866,0.00019178,2]
[400015446,1767019844324,-181.60437423,0.00019178,2]
[400015447,1767019844333,-230.11756583,0.00019178,2]
[400015448,1767019844342,-184.817009,0.00019178,2]
[400015449,1767019844351,-500.0,0.00019178,2]
[400015450,1767019844360,-391.3718607,0.00019178,2]
[400015451,1767019844369,-495.84474953,0.00019178,2]
[400015452,1767019844379,-487.22662135,0.00019178,2]
[400015453,1767019844389,-456.52226619,0.00019178,2]
[400015454,1767019844399,-429.41639559,0.00019178,2]
[400015455,1767019844409,-409.43073117,0.00019178,2]
[400015457,1767019844419,-228.49898026,0.00019178,2]
[400015459,1767019844428,-316.49095567,0.00019178,2]
[400015461,1767019844437,-232.05339944,0.00019178,2]
[400015463,1767019844447,-494.78835906,0.00019178,2]
[400015465,1767019844457,-405.47737161,0.00019178,2]
[400015467,1767019844465,-248.92613817,0.00019178,2]
[400015469,1767019844474,-150.04324671,0.00019178,2]
[400015470,1767019844483,-230.99483231,0.00019178,2]
[400015471,1767019844492,-291.75959071,0.00019178,2]
[400015472,1767019844502,-262.87676403,0.00019178,2]
[400015474,1767019844510,-299.02872134,0.00019178,2]
[400015476,1767019844520,-150.4825193,0.00019178,2]
[400015478,1767019844530,-462.54292197,0.00019178,2]
[400015480,1767019844539,-426.82751742,0.00019178,2]
[400015482,1767019844548,-154.63759183,0.00019178,2]
[400015484,1767019844558,-526.9478121,0.00019178,2]
[400015486,1767019844567,-281.44204914,0.00019178,2]
[400015488,1767019844576,-498.08828265,0.00019178,2]
[400015490,1767019844585,-250.55772468,0.00019178,2]
[400015492,1767019844594,-210.28506365,0.00019178,2]
[400015494,1767019844604,-172.9864347,0.00019178,2]
[400015496,1767019844613,-488.04044067,0.00019178,2]
[400015498,1767019844623,-500.0,0.00019178,2]
[400015500,1767019844632,-278.49623661,0.00019178,2]
[400015502,1767019844641,-287.89513794,0.00019178,2]
[400015504,1767019844651,-461.85768299,0.00019178,2]
[400015506,1767019844661,-507.26557414,0.00019178,2]
[400015508,1767019844670,-168.52666437,0.00019178,2]
[400015510,1767019844679,-1310.26,0.00019178,2]
[400015512,1767019844688,-506.29868568,0.00019178,2]
[400015514,1767019844699,-500.0,0.00019178,2]
[400015516,1767019844708,-478.6229675,0.00019178,2]
[400015518,1767019844717,-199.91617465,0.00019178,2]
[400015520,1767019844727,-249.77890113,0.00019178,2]
[400015522,1767019844736,-444.45530115,0.00019178,2]
[400015524,1767019844746,-273.04367163,0.00019178,2]
[400015526,1767019844755,-370.06593705,0.00019178,2]
[400015528,1767019844764,-598.60330821,0.00019178,2]
[400015530,1767019844773,-500.0,0.00019178,2]
[400015532,1767019844782,-253.63102759,0.00019178,2]
[400015533,1767019844791,-250.41947489,0.00019178,2]
[400015535,1767019844801,-268.16933491,0.00019178,2]
[400015538,1767019844810,-447.25692417,0.00019178,2]
[400015540,1767019844820,-167.89015727,0.00019178,2]
[400015542,1767019844829,-273.4647335,0.00019178,2]
[400015544,1767019844838,-349.87778429,0.00019178,2]
[400015545,1767019844847,-342.84833664,0.00019178,2]
[400015547,1767019844856,-460.77258881,0.00019178,2]
[400015549,1767019844865,-264.5012368,0.00019178,2]
[400015551,1767019844874,-404.6474823,0.00019178,2]
[400015553,1767019844883,-500.0,0.00019178,2]
[400015555,1767019844892,-500.0,0.00019178,2]
[400015557,1767019844902,-188.57203443,0.00019178,2]
[400015559,1767019844912,-460.71443357,0.00019178,2]
[400015561,1767019844926,-480.0,0.00019178,2]
[400015563,1767019844935,-320.62728522,0.00019178,2]
[400015565,1767019844944,-199.94677936,0.00019178,2]
[400015567,1767019844953,-426.17029981,0.00019178,2]
[400015569,1767019844964,-288.92186598,0.00019178,2]
[400015571,1767019844973,-472.97678502,0.00019178,2]
[400015573,1767019844983,-516.4273939,0.00019178,2]
[400015575,1767019844992,-208.47163128,0.00019178,2]
[400015577,1767019845003,-500.0,0.00019178,2]
[400015579,1767019845013,-276.96921568,0.00019178,2]
[400015581,1767019845023,-235.4861929,0.00019178,2]
[400015583,1767019845032,-429.68058131,0.00019178,2]
[400015585,1767019845042,-226.63513394,0.00019178,2]
[400015587,1767019845051,-500.0,0.00019178,2]
[400015589,1767019845061,-476.97803324,0.00019178,2]
[400015591,1767019845071,-500.0,0.00019178,2]
[400015593,1767019845080,-185.23037313,0.00019178,2]
[400015595,1767019845089,-262.71392186,0.00019178,2]
[400015597,1767019845098,-7123.45837236,0.00019178,2]
[400015599,1767019845107,-500.0,0.00019178,2]
[400015601,1767019845116,-385.30648605,0.00019178,2]
[400015603,1767019845125,-397.08280438,0.00019178,2]
[400015605,1767019845135,-464.71326591,0.00019178,2]
[400015607,1767019845144,-251.01134055,0.00019178,2]
[400015609,1767019845152,-247.7999855,0.00019178,2]
[400015611,1767019845162,-471.93365652,0.00019178,2]
[400015613,1767019845170,-275.42632348,0.00019178,2]
[400015615,1767019845179,-488.22762557,0.00019178,2]
[400015617,1767019845188,-172.47455784,0.00019178,2]
[400015619,1767019845197,-500.0,0.00019178,2]
[400015620,1767019845206,-394.44798284,0.00019178,2]
[400015622,1767019845215,-380.96173072,0.00019178,2]
[400015624,1767019845224,-413.5855328,0.00019178,2]
[400015627,1767019845234,-305.52353352,0.00019178,2]
[400015629,1767019845243,-463.44162143,0.00019178,2]
[400015631,1767019845252,-339.11993172,0.00019178,2]
[400015632,1767019845264,-500.0,0.00019178,2]
[400015634,1767019845274,-208.13778615,0.00019178,2]
[400015636,1767019845283,-479.8863713,0.00019178,2]
[400015638,1767019845292,-1086.89,0.00019178,2]
[400015641,1767019845302,-262.88897779,0.00019178,2]
[400015642,1767019845312,-361.59023769,0.00019178,2]
[400015644,1767019845321,-500.0,0.00019178,2]
[400015646,1767019845331,-476.5122698,0.00019178,2]
[400015649,1767019845340,-219.25366099,0.00019178,2]
[400015652,1767019845349,-1812.46,0.00019178,2]
[400015655,1767019845359,-398.66824558,0.00019178,2]
[400015658,1767019845367,-463.8590192,0.00019178,2]
[400015661,1767019845376,-500.0,0.00019178,2]
[400015664,1767019845386,-380.6213759,0.00019178,2]
[400015669,1767019845395,-248.87860646,0.00019178,2]
[400015671,1767019845407,-621.07135702,0.00019178,2]
[400015673,1767019845418,-378.82197893,0.00019178,2]
[400015675,1767019845427,-419.48502169,0.00019178,2]
[400015677,1767019845436,-262.68140088,0.00019178,2]
[400015679,1767019845445,-506.89,0.00019178,2]
[400015681,1767019845455,-393.93519273,0.00019178,2]
[400015683,1767019845464,-385.14357929,0.00019178,2]
[400015685,1767019845473,-174.43765319,0.00019178,2]
[400015687,1767019845483,-557.4,0.00019178,2]
[400015689,1767019845493,-264.52877309,0.00019178,2]
[400015691,1767019845502,-485.13,0.00019178,2]
[400015693,1767019845512,-1270.26,0.00019178,2]
[400015695,1767019845522,-289.91132384,0.00019178,2]
[400015697,1767019845531,-463.66887211,0.00019178,2]
[400015699,1767019845540,-449.17785108,0.00019178,2]
[400015701,1767019845549,-500.0,0.00019178,2]
[400015703,1767019845559,-475.74346308,0.00019178,2]
[400015705,1767019845568,-493.05979913,0.00019178,2]
[400015707,1767019845578,-452.63889928,0.00019178,2]
[400015708,1767019845587,-161.18946542,0.00019178,2]
[400015711,1767019845596,-2134.46,0.00019178,2]
[400015713,1767019845607,-500.0,0.00019178,2]
[400015714,1767019845616,-574.48534634,0.00019178,2]
[400015716,1767019845626,-441.07486283,0.00019178,2]
[400015718,1767019845635,-173.42928672,0.00019178,2]
[400015720,1767019845645,-504.68438666,0.00019178,2]
[400015722,1767019845654,-2240.1,0.00019178,2]
[400015724,1767019845666,-1529.44,0.00019178,2]
[400015727,1767019845676,-522.88825418,0.00019178,2]
[400015729,1767019845686,-583.56068195,0.00019178,2]
[400015730,1767019845695,-576.74851698,0.00019178,2]
[400015733,1767019845704,-496.32975888,0.00019178,2]
[400015734,1767019845715,-299.9120085,0.00019178,2]
[400015736,1767019845725,-253.53306599,0.00019178,2]
[400015738,1767019845734,-275.38899138,0.00019178,2]
[400015740,1767019845743,-213.22941767,0.00019178,2]
[400015743,1767019845752,-416.22411128,0.00019178,2]
[400015745,1767019845762,-441.85119835,0.00019178,2]
[400015747,1767019845772,-250.76892888,0.00019178,2]
[400015748,1767019845781,-478.48389396,0.00019178,2]
[400015750,1767019845791,-354.63854456,0.00019178,2]
[400015752,1767019845800,-286.86271311,0.00019178,2]
[400015755,1767019845810,-482.52139185,0.00019178,2]
[400015757,1767019845820,-502.66559039,0.00019178,2]
[400015759,1767019845829,-500.0,0.00019178,2]
[400015761,1767019845839,-223.12119079,0.00019178,2]
[400015763,1767019845848,-320.1998631,0.00019178,2]
[400015765,1767019845857,-243.7655413,0.00019178,2]
[400015767,1767019845866,-500.0,0.00019178,2]
[400015769,1767019845876,-835.89,0.00019178,2]
[400015771,1767019845885,-482.00582969,0.00019178,2]
[400015772,1767019845895,-2345.47,0.00019178,2]
[400015774,1767019845904,-404.40678334,0.00019178,2]
[400015776,1767019845915,-184.88251798,0.00019178,2]
[400015778,1767019845925,-439.14977885,0.00019178,2]
[400015780,1767019845935,-464.19137506,0.00019178,2]
[400015782,1767019845945,-500.0,0.00019178,2]
[400015784,1767019845954,-244.19042592,0.00019178,2]
[400015786,1767019845963,-345.23126733,0.00019178,2]
[400015788,1767019845974,-243.60402505,0.00019178,2]
[400015790,1767019845983,-269.01977505,0.00019178,2]
[400015792,1767019845992,-348.06819212,0.00019178,2]
[400015794,1767019846004,-475.56578252,0.00019178,2]
[400015795,1767019846013,-200.01707268,0.00019178,2]
[400015796,1767019846023,-2300.68,0.000192,2]
[400015797,1767019846031,-161.39,0.000192,2]
[400015798,1767019846040,-156.66,0.000192,2]
[400015800,1767019846049,-500.0,0.00019452,2]
[400015802,1767019846059,-500.0,0.00019452,2]
[400015803,1767019846068,-438.32011162,0.00019452,2]
[400015805,1767019846078,-506.61072878,0.00019452,2]
[400015807,1767019846087,-497.36160661,0.00019452,2]
[400015809,1767019846096,-500.0,0.00019452,2]
[400015811,1767019846105,-1000.0,0.00019452,2]
[400015812,1767019846114,-193.714378,0.00019452,2]
[400015814,1767019846125,-518.97313957,0.00019452,2]
[400015816,1767019846134,-500.0,0.00019452,2]
[400015817,1767019846143,-500.0,0.00019452,2]
[400015818,1767019846153,-1258.92,0.00019452,2]
[400015819,1767019846165,-500.0,0.00019452,2]
[400015820,1767019846174,-521.16197729,0.00019452,2]
[400015821,1767019846184,-500.0,0.00019452,2]
[400015822,1767019846193,-465.31557181,0.00019452,2]
[400015823,1767019846203,-500.0,0.00019452,2]
[400015824,1767019846214,-500.0,0.00019452,2]
[400015825,1767019846228,-500.0,0.00019452,2]
[400015826,1767019846238,-500.0,0.00019452,2]
[400015827,1767019846247,-574.98627618,0.00019452,2]
[400015828,1767019846257,-427.64161233,0.00019452,2]
[400015829,1767019846267,-519.03862335,0.00019452,2]
[400015830,1767019846276,-351.74831702,0.00019452,2]
[400015831,1767019846286,-500.0,0.00019452,2]
[400015832,1767019846295,-359.90731785,0.00019452,2]
[400015833,1767019846304,-355.06711702,0.00019452,2]
[400015834,1767019846314,-382.15781125,0.00019452,2]
[400015835,1767019846323,-491.44374409,0.00019452,2]
[400015836,1767019846332,-286.81530226,0.00019452,2]
[400015837,1767019846341,-500.0,0.00019452,2]
[400015838,1767019846350,-414.98358228,0.00019452,2]
[400015839,1767019846359,-461.32492869,0.00019452,2]
[400015840,1767019846368,-500.0,0.00019452,2]